{"text_format":"1","workbook":"xlsx","n_sheets":7,"sheets":["入力例","従事者情報入力シート","設定シート","計算結果シート_7票","エラーチェック (性別有)","集計シート","エラーチェック"],"not_rendered":{"charts":0,"images":3,"macros":1,"external_links":0,"defined_names":1,"comments":2,"pivot_tables":0},"unopened":[],"bounds":{"document_bytes":16777216,"sheet_cells":100000,"rows_first":2000,"rows_last":500,"rows_between":2000,"halvings":0,"cell_chars":16384,"cell_head_chars":4096},"cells_cut":0,"cells_raw":0,"read":"whole","date_system":"1900"}

{"sheet":"入力例","index":0,"n_rows":10,"n_cols":7,"rows_kept":10,"cut":false,"hidden":false,"merged":[]}
["■入力例　　★常勤換算の計算方法は、記入の手引きを参照してください。"]
[]
["　","●所定労働時間４０時間"]
[null,"●従事者","Aさん","理学療法士                               ",null,null,"週４０時間勤務"]
[null,null,"Bさん","作業療法士                               ",null,null,"週２０時間勤務"]
[null,null,"Cさん","言語聴覚士                               ",null,null,"月１０時間勤務"]
[null,null,"Dさん","看護師と介護職員の兼務　      　　　 ",null,null,"週４０時間勤務（看護師１０時間／介護職員３０時間）"]
[null,null,"Eさん","准看護師と介護職員の兼務　      　　",null,null,"週３５時間勤務（准看護師１５時間／介護職員２０時間）"]
[null,null,"Fさん","医師（併設事業所との兼務）         ",null,null,"週４０時間勤務（９月中の利用者数：当事業所４０名／併設事業所２５名）"]
[null,null,"Gさん","栄養士（併設事業所との兼務）      ",null,null,"週３０時間勤務（９月中の利用者数：当事業所４０名／併設事業所１０名）"]

{"sheet":"従事者情報入力シート","index":1,"n_rows":13,"n_cols":12,"rows_kept":13,"cut":false,"hidden":false,"merged":[[11,6,12,6],[11,7,12,7],[11,8,11,9],[11,10,12,10],[11,11,12,11],[3,1,4,10],[6,0,6,1],[6,2,6,3],[6,7,6,8],[8,0,8,1],[11,1,12,1],[11,2,12,2],[11,3,12,3],[11,4,12,4],[11,5,12,5]]}
[]
[null,"「介護サービス施設・事業所調査」　常勤換算従事者数の計算補助ツール"]
[]
[]
[]
[]
["調査票種",null,"居宅サービス事業所（医療関係）票",null,null,"サービス種別","サービス種別","-"]
[]
["①施設・事業所の\n１週間の所定労働時間",null,null,"時間"]
[]
[null,"※任意","※必須","※必須","※必須",null,null,null,null,null,null,"入力不可"]
[null,"②自由記載\n（従事者名等入力してください）","③勤務形態\n（常勤専従／常勤兼務／非常勤）","④職種","性別","⑤常勤専従\r\n人数","⑥この施設・\r\n事業所での､\r\n当該職種の\r\n1 週間の勤務時間","⑦月数回勤務の場合､\r\nこの施設・事業所での\r\n当該職種の\r\n1 か月の勤務時間","⑧勤務時間で分けられない場合､\r\n利用人数で按分",null,"⑨勤務時間でも利用人数でも分けられない場合､この施設・事業所の当該職種の換算数を直接入力","エラー"]
[null,null,null,null,null,null,null,null,"この施設・事業所の\n利用人数","兼務する施設・\n事業所の利用人数"]

{"sheet":"設定シート","index":2,"n_rows":17,"n_cols":26,"rows_kept":17,"cut":false,"hidden":true,"merged":[[2,12,2,16],[2,17,2,21],[3,13,3,14],[3,15,3,16],[3,18,3,19],[3,20,3,21]]}
["設定名","票種","性別選択有無","サービス表示有無","デフォルト種別",null,"調査票種名"]
["設定値",7,false,false,"-",null,"居宅サービス事業所（医療関係）票",null,null,null,null,null,null,null,null,null,null,null,"※性別の選択肢がある調査票のみ"]
[null,null,null,null,null,null,null,null,null,null,null,null,"男",null,null,null,null,"女"]
["ドロップダウンアイテム(基本)",null,null,null,null,null,"ドロップダウンアイテム(職種 - 資格)　+ 集計時の設定情報",null,null,null,null,null,"専従","常勤兼務",null,"非常勤",null,"専従","常勤兼務",null,"非常勤",null,null,"リストボックスに表示する職種一覧（非表示を除く）"]
["区分番号","区分名","選択肢","サービス種別","補足／シート名","非表示","票種","サービス種別","職種-資格","集計用職種","集計用資格","集計用資格2","人数","人数","換算数","人数","換算数","人数","人数","換算数","人数","換算数",null,"票種","サービス種別","職種-資格"]
[1,"勤務形態","常勤専従",null,"C列",null,"7票","-","1医師","1医師",null,null,"D7","E7","F7","G7","H7",null,null,null,null,null,null,"7票","-","1医師"]
[1,"勤務形態","常勤兼務",null,"C列",null,"7票","-","2看護師","2看護師",null,null,"D8","E8","F8","G8","H8",null,null,null,null,null,null,"7票","-","2看護師"]
[1,"勤務形態","非常勤",null,"C列",null,"7票","-","3准看護師","3准看護師",null,null,"D9","E9","F9","G9","H9",null,null,null,null,null,null,"7票","-","3准看護師"]
[2,"性別","男",null,"E列",null,"7票","-","4介護職員-該当資格なし","4介護職員","該当資格なし",null,"D10","E10","F10","G10","H10",null,null,null,null,null,null,"7票","-","4介護職員-該当資格なし"]
[2,"性別","女",null,"E列",null,"7票","-","4介護職員-介護福祉士-勤続10年未満の者","4介護職員","介護福祉士","該当資格なし","D11","E11","F11","G11","H11",null,null,null,null,null,null,"7票","-","4介護職員-介護福祉士-勤続10年未満の者"]
[9,"サービス種別","-","-","計算結果シート_7票",null,"7票","-","4介護職員-介護福祉士-勤続10年以上の者","4介護職員","介護福祉士","勤続10年以上の者","D12","E12","F12","G12","H12",null,null,null,null,null,null,"7票","-","4介護職員-介護福祉士-勤続10年以上の者"]
[null,null,null,null,null,null,"7票","-","5理学療法士","5理学療法士",null,null,"J7","K7","L7","M7","N7",null,null,null,null,null,null,"7票","-","5理学療法士"]
[null,null,null,null,null,null,"7票","-","6作業療法士","6作業療法士",null,null,"J8","K8","L8","M8","N8",null,null,null,null,null,null,"7票","-","6作業療法士"]
[null,null,null,null,null,null,"7票","-","7言語聴覚士","7言語聴覚士",null,null,"J9","K9","L9","M9","N9",null,null,null,null,null,null,"7票","-","7言語聴覚士"]
[null,null,null,null,null,null,"7票","-","8歯科衛生士","8歯科衛生士",null,null,"J10","K10","L10","M10","N10",null,null,null,null,null,null,"7票","-","8歯科衛生士"]
[null,null,null,null,null,null,"7票","-","9管理栄養士","9管理栄養士",null,null,"J11","K11","L11","M11","N11",null,null,null,null,null,null,"7票","-","9管理栄養士"]
[null,null,null,null,null,null,"7票","-","10栄養士","10栄養士",null,null,"J12","K12","L12","M12","N12",null,null,null,null,null,null,"7票","-","10栄養士"]

{"sheet":"計算結果シート_7票","index":3,"n_rows":13,"n_cols":14,"rows_kept":13,"cut":false,"hidden":false,"merged":[[4,6,5,6],[4,9,5,9],[10,1,10,2],[4,10,4,11],[4,12,5,12],[6,0,6,2],[7,0,7,2],[8,0,8,2],[9,0,9,2],[3,0,5,2],[3,3,3,5],[3,6,3,7],[3,8,5,8],[3,9,3,11],[3,12,3,13],[4,3,5,3],[4,4,4,5]]}
["●計算結果シート　7票　＜（介護予防）通所リハビリテーション＞"]
["※この内容を調査票に転記してください。"]
[]
[null,null,null,"常勤",null,null,"非常勤",null,null,"常勤",null,null,"非常勤"]
[null,null,null,"専従\n(人)","兼務(専従分除く)",null,"非常勤\n(人)",null,null,"専従\n(人)","兼務(専従分除く)",null,"非常勤\n(人)"]
[null,null,null,null,"(人)","換算数(人)",null,"換算数(人)",null,null,"(人)","換算数(人)",null,"換算数(人)"]
["１　医師",null,null,null,null,null,null,null,"５　理学療法士"]
["２　看護師",null,null,null,null,null,null,null,"６　作業療法士"]
["３　准看護師",null,null,null,null,null,null,null,"７　言語聴覚士"]
["４　介護職員",null,null,null,null,null,null,null,"８　歯科衛生士"]
[null,"４のうち 介護福祉士",null,null,null,null,null,null,"９　管理栄養士"]
[null,null,"うち、勤続10年以上(※)の者",null,null,null,null,null,"10　栄養士"]
[null,"※勤続年数は、当該法人での勤続年数とする。"]

{"sheet":"エラーチェック (性別有)","index":4,"n_rows":47,"n_cols":16,"rows_kept":47,"cut":false,"hidden":true,"merged":[]}
["2024.5.14","性別有の場合、項目番号がずれるため、エラーメッセージもそれに対応したもの（２０２１年度より採用）"]
[null,"勤務時間①-④の入力値は①＞②＞③＞④　※チェック時に優先度の高い有効値がある場合は、それより低い優先度の値のチェックは不要とする"]
[]
["エラーコード一覧",null,null,"エラーチェック　入力規則"]
["MSGCD","エラー表示メッセージ",null,"番号","項目","対象列\nセル","チェック種類","入力値種類","スタイル","チェック内容","MSGCD","エラー表示メッセージ","表示場所","集計結果","備考","確認"]
["MSG_CHK_ERR_K(1)","リストから選択してください",null,1,"サービス種別","Ｈ7","入力規則","リスト","停止","選択肢以外","MSG_CHK_ERR_K(1)",{"$f":"IF(ISERROR(VLOOKUP(K6,$A$6:$B$38,2,0))=TRUE,\"\",VLOOKUP(K6,$A$6:$B$38,2,0))","v":"リストから選択してください"},"メッセージボックス","メッセージボックスにエラーが表示される場合→入力自体不可\nL列にエラー表示→該当行は集計結果から除外","値をペーストされた場合は、L列 -エラー該当行にメッセージ表示","メッセージ確認"]
["MSG_CHK_ERR_K(2)","1週間の所定労働時間は32～44の数値で入力してください",null,2,"１週間の所定労働時間","C9","入力規則","小数点数","停止","≠小数\n範囲：1-44","MSG_CHK_ERR_K(2)","1週間の所定労働時間は32～44の数値で入力してください","メッセージボックス","メッセージボックスにエラーが表示される場合→入力自体不可\nL列にエラー表示→該当行は集計結果から除外","値をペーストされた場合は、L列 -エラー該当行にメッセージ表示","メッセージ確認"]
["MSG_CHK_ERR_K(3)","１週間の勤務時間は1～44の数値で入力してください",null,3,"勤務形態","C列","入力規則","リスト","停止","選択肢以外","MSG_CHK_ERR_K(9)","勤務形態はリストから選択してください","メッセージボックス","メッセージボックスにエラーが表示される場合→入力自体不可\nL列にエラー表示→該当行は集計結果から除外","値をペーストされた場合は、L列 -エラー該当行にメッセージ表示","メッセージ確認"]
["MSG_CHK_ERR_K(4)","人数は0～99999の整数で入力してください",null,4,"職種","D列","入力規則","リスト","停止","選択肢以外","MSG_CHK_ERR_P(7)","職種はリストから選択してください","メッセージボックス","メッセージボックスにエラーが表示される場合→入力自体不可\nL列にエラー表示→該当行は集計結果から除外","値をペーストされた場合は、L列 -エラー該当行にメッセージ表示","メッセージ確認"]
["MSG_CHK_ERR_K(5)","１職種あたりの換算数は0.1～1.0の数値で入力してください",null,5,"性別","E列","入力規則","リスト","停止","未記入","MSG_CHK_ERR_K(8)","性別はリストから選択してください","メッセージボックス","メッセージボックスにエラーが表示される場合→入力自体不可\nL列にエラー表示→該当行は集計結果から除外","値をペーストされた場合は、L列 -エラー該当行にメッセージ表示","メッセージ確認"]
["MSG_CHK_ERR_K(6)","1か月の勤務時間は1～176の数値で入力してください",null,6,"⑤常勤専従人数","Ｆ列","入力規則","整数","停止","≠整数\n範囲：1～99999","MSG_CHK_ERR_K(7)","人数は1～99999の整数で入力してください","メッセージボックス","メッセージボックスにエラーが表示される場合→入力自体不可\nL列にエラー表示→該当行は集計結果から除外","値をペーストされた場合は、L列 -エラー該当行にメッセージ表示","メッセージ確認"]
["MSG_CHK_ERR_K(7)","人数は1～99999の整数で入力してください",null,7,"⑥この施設での１週間の勤務時間","G列","入力規則","小数点数","停止","≠小数\n範囲：1-44","MSG_CHK_ERR_K(3)","１週間の勤務時間は1～44の数値で入力してください","メッセージボックス","メッセージボックスにエラーが表示される場合→入力自体不可\nL列にエラー表示→該当行は集計結果から除外","所定労働時間とのチェックはプログラムで対応\n値をペーストされた場合は、L列 -エラー該当行にメッセージ表示","メッセージ確認"]
["MSG_CHK_ERR_K(8)","性別はリストから選択してください",null,8,"⑦1か月に数回の勤務の場合の１か月の勤務時間","H列","入力規則","小数点数","停止","≠小数\n範囲：1-176","MSG_CHK_ERR_K(6)","1か月の勤務時間は1～176の数値で入力してください","メッセージボックス","メッセージボックスにエラーが表示される場合→入力自体不可\nL列にエラー表示→該当行は集計結果から除外","所定労働時間とのチェックはプログラムで対応\n値をペーストされた場合は、L列 -エラー該当行にメッセージ表示","メッセージ確認"]
["MSG_CHK_ERR_K(9)","勤務形態はリストから選択してください",null,9,"⑧勤務時間が分けられない場合","I列・J列","入力規則","整数","停止","≠整数\n範囲：0～99999","MSG_CHK_ERR_K(4)","人数は0～99999の整数で入力してください","メッセージボックス","メッセージボックスにエラーが表示される場合→入力自体不可\nL列にエラー表示→該当行は集計結果から除外","整数のみ 介護（I、J列）、福祉（I列）\n値をペーストされた場合は、L列 -エラー該当行にメッセージ表示","メッセージ確認"]
[null,null,null,10,"⑧勤務時間が分けられない場合","I列","入力規則","整数","停止","≠整数\n範囲：1～99999","MSG_CHK_ERR_K(7)","人数は1～99999の整数で入力してください","メッセージボックス","メッセージボックスにエラーが表示される場合→入力自体不可\nL列にエラー表示→該当行は集計結果から除外","整数のみ 福祉\n値をペーストされた場合は、L列 -エラー該当行にメッセージ表示","メッセージ確認"]
[null,null,null,11,"⑨当該職種の換算数","K列","入力規則","小数点数","停止","＞１．０\n範囲：0.1～1","MSG_CHK_ERR_K(5)","１職種あたりの換算数は0.1～1.0の数値で入力してください","メッセージボックス","メッセージボックスにエラーが表示される場合→入力自体不可\nL列にエラー表示→該当行は集計結果から除外","値をペーストされた場合は、L列 -エラー該当行にメッセージ表示","メッセージ確認"]
["MSG_CHK_ERR_P(1)","エラーが発生しています　(集計不可)"]
["MSG_CHK_ERR_P(2)","エラーが発生しています　(集計結果はエラー行を除外しています)"]
["MSG_CHK_ERR_P(3)","サービス種別を選択してください",null,"エラーチェック　プログラム"]
["MSG_CHK_ERR_P(4)","1週間の所定労働時間は32～44の数値で入力してください",null,"番号","項目","対象列\nセル","チェック種類","入力値種類","スタイル","チェック内容","MSGCD","エラー表示メッセージ","表示場所","集計結果","備考","確認"]
["MSG_CHK_ERR_P(5)","勤務形態をリストから選択してください",null,1,"全体","全体","プログラム",null,null,"エラーが1つ以上発生している場合\n※集計不可のエラーが含まれている場合","MSG_CHK_ERR_P(1)",{"$f":"IF(ISERROR(VLOOKUP(K21,$A$6:$B$46,2,0))=TRUE,\"\",VLOOKUP(K21,$A$6:$B$46,2,0))","v":"エラーが発生しています　(集計不可)"},"セル「G9」","全ての集計結果が算出不可","プログラムチェック結果で1つ以上のエラーが発生している場合に表示する\n「サービス種別」・「1週間の所定労働時間」のブランクエラーを含む場合","メッセージ確認"]
["MSG_CHK_ERR_P(6)","職種をリストから選択してください",null,2,"全体","全体","プログラム",null,null,"エラーが1つ以上発生している場合\n※集計不可のエラーが含まれていない場合","MSG_CHK_ERR_P(2)",{"$f":"IF(ISERROR(VLOOKUP(K22,$A$6:$B$46,2,0))=TRUE,\"\",VLOOKUP(K22,$A$6:$B$46,2,0))","v":"エラーが発生しています　(集計結果はエラー行を除外しています)"},"セル「G9」","該当行は集計結果から除外","プログラムチェック結果で1つ以上のエラーが発生している場合に表示する\n※行単位のエラーのみの場合","メッセージ確認"]
["MSG_CHK_ERR_P(7)","職種はリストから選択してください",null,3,"サービス種別","Ｈ7","プログラム",null,null,"未記入","MSG_CHK_ERR_P(3)","サービス種別を選択してください","セル「J7」","全ての集計結果が算出不可","サービス種別が複数ある調査票種のみ\n※サービス種別の選択が不要な票種は不要","サービス種別がブランクの場合の集計ができない旨を確認"]
["MSG_CHK_ERR_P(8)","性別をリストから選択してください",null,4,"１週間の所定労働時間","C9","プログラム",null,null,"未記入","MSG_CHK_ERR_P(4)","1週間の所定労働時間は32～44の数値で入力してください","セル「C10」","全ての集計結果が算出不可",null,"所定労働時間がブランクの場合の集計ができない旨を確認"]
["MSG_CHK_ERR_P(9)","⑦勤務時間は所定労働時間以下の数値を入力してください",null,5,"１週間の所定労働時間","C9","プログラム",null,null,"≠小数点第２位以内","MSG_CHK_ERR_P(11)","小数点第２位以内の数値を入力してください","セル「C10」","全ての集計結果が算出不可",null,"所定労働時間がブランクの場合の集計ができない旨を確認"]
["MSG_CHK_ERR_P(10)","⑧勤務時間は「所定労働時間ｘ４」以下の数値を入力してください",null,6,"勤務形態","C列","プログラム",null,null,"未記入","MSG_CHK_ERR_P(5)","勤務形態をリストから選択してください","L列 -エラー該当行","L列にエラー表示\n→該当行は集計結果から除外",null,"メッセージ確認"]
["MSG_CHK_ERR_P(11)","小数点第２位以内の数値を入力してください",null,7,"職種","D列","プログラム",null,null,"未記入","MSG_CHK_ERR_P(6)","職種をリストから選択してください","L列 -エラー該当行","L列にエラー表示\n→該当行は集計結果から除外",null,"勤務形態入力時"]
["MSG_CHK_ERR_P(12)","小数点第３位以内の数値を入力してください",null,8,"職種","D列","プログラム",null,null,"選択されたサービス種別に該当しない職種の場合","MSG_CHK_ERR_P(7)","職種はリストから選択してください","L列 -エラー該当行","L列にエラー表示\n→該当行は集計結果から除外","サービス種別を後で変更したケースに対応","チェックの追加を確認\n勤務形態入力時"]
["MSG_CHK_ERR_P(13)","⑨人数は両方入力してください",null,9,"性別","E列","プログラム",null,null,"未記入","MSG_CHK_ERR_P(8)","性別をリストから選択してください","L列 -エラー該当行","L列にエラー表示\n→該当行は集計結果から除外","性別の選択が不要な票はチェック不要\n※列幅を0で非表示対応とする","2021.から実稼働"]
["MSG_CHK_ERR_P(14)","⑦～⑩が未入力です",null,10,"⑥この施設での１週間の勤務時間","Ｇ列","プログラム",null,null,"≧所定労働時間","MSG_CHK_ERR_P(9)","⑦勤務時間は所定労働時間以下の数値を入力してください","L列 -エラー該当行","L列にエラー表示\n→該当行は集計結果から除外","入力規則では対応不可\n→プログラムで対応（1～44までは入力規則で対応、そうでない場合プログラムで対応）","入力規則からプログラムでのチェックに変更\n勤務形態：常勤兼務の時"]
["MSG_CHK_ERR_P(15)","常勤専従の人数が未入力です",null,11,"⑥この施設での１週間の勤務時間","Ｇ列","プログラム",null,null,">所定労働時間","MSG_CHK_ERR_P(24)","⑦勤務時間は所定労働時間より小さい数値を入力してください","L列 -エラー該当行","L列にエラー表示\n→該当行は集計結果から除外","入力規則では対応不可\n→プログラムで対応（1～44までは入力規則で対応、そうでない場合プログラムで対応）","入力規則からプログラムでのチェックに変更\n勤務形態：非常勤の時"]
["MSG_CHK_ERR_P(16)","常勤専従は常勤専従人数のみ入力してください",null,12,"⑥この施設での１週間の勤務時間","Ｇ列","プログラム",null,null,"≠小数点第２位以内","MSG_CHK_ERR_P(11)","小数点第２位以内の数値を入力してください","L列 -エラー該当行","L列にエラー表示\n→該当行は集計結果から除外","小数点以下の入力規則はできない為、チェックを追加","チェックの追加を確認\n勤務形態：常勤兼務or非常勤の時"]
["MSG_CHK_ERR_P(17)","常勤専従は⑦～⑩の入力は不要です",null,13,"⑦1か月に数回の勤務の場合の１か月の勤務時間","Ｈ列","プログラム",null,null,"≧所定労働時間×４","MSG_CHK_ERR_P(10)","⑧勤務時間は「所定労働時間ｘ４」以下の数値を入力してください","L列 -エラー該当行","L列にエラー表示\n→該当行は集計結果から除外","入力規則では対応不可\n→プログラムで対応（1～176までは入力規則で対応、そうでない場合プログラムで対応）","入力規則からプログラムでのチェックに変更\n勤務形態：常勤兼務の時"]
["MSG_CHK_ERR_P(18)","常勤兼務・非常勤で常勤専従人数の入力があります",null,14,"⑦1か月に数回の勤務の場合の１か月の勤務時間","Ｈ列","プログラム",null,null,">所定労働時間×４","MSG_CHK_ERR_P(25)","⑧勤務時間は「所定労働時間ｘ４」より小さい数値を入力してください","L列 -エラー該当行","L列にエラー表示\n→該当行は集計結果から除外","入力規則では対応不可\n→プログラムで対応（1～176までは入力規則で対応、そうでない場合プログラムで対応）","入力規則からプログラムでのチェックに変更\n勤務形態：非常勤の時"]
["MSG_CHK_ERR_P(19)","⑦～⑩のうち該当する項目のみに入力してください(常勤兼務)",null,15,"⑦1か月に数回の勤務の場合の１か月の勤務時間","Ｈ列","プログラム",null,null,"≠小数点第２位以内","MSG_CHK_ERR_P(11)","小数点第２位以内の数値を入力してください","L列 -エラー該当行","L列にエラー表示\n→該当行は集計結果から除外","小数点以下の入力規則はできない為、チェックを追加","チェックの追加を確認\n勤務形態：常勤兼務or非常勤の時"]
["MSG_CHK_ERR_P(20)","⑦～⑩のうち該当する項目のみに入力してください(非常勤)",null,16,"⑧勤務時間が分けられない場合","Ｉ列・Ｊ列\n","プログラム",null,null,"I列・Ｊ列以外に記入がなく、\nI列・Ｊ列の両方に記入がない","MSG_CHK_ERR_P(13)","⑨人数は両方入力してください","L列 -エラー該当行","L列にエラー表示\n→該当行は集計結果から除外","H列・I列の整合性チェックを追加","チェックの追加を確認\n勤務形態：常勤兼務or非常勤の時"]
["MSG_CHK_ERR_P(21)","⑨人数は両方入力してください",null,17,"⑨当該職種の勤務割合","Ｋ列","プログラム",null,null,"≠小数点第3位以内","MSG_CHK_ERR_P(12)","小数点第３位以内の数値を入力してください","L列 -エラー該当行","L列にエラー表示\n→該当行は集計結果から除外","小数点以下の入力規則はできない為、チェックを追加","チェックの追加を確認\n勤務形態：常勤兼務or非常勤の時"]
["MSG_CHK_ERR_P(22)","該当職種における勤務時間がわからない場合は、換算数を⑨に入力してください",null,18,"⑥～⑨","G列-K列\n","プログラム",null,null,"未記入","MSG_CHK_ERR_P(14)","⑦～⑩が未入力です","L列 -エラー該当行","L列にエラー表示\n→該当行は集計結果から除外","※人数按分(I、J）が１つのみ入力されている場合は番号16のチェックで対応","③④⑤の入力がある場合\n勤務形態：常勤兼務or非常勤の時"]
["MSG_CHK_ERR_P(23)","換算数を⑩に入力してください",null,19,"⑥～⑨","G列-K列","プログラム",null,null,"未記入","MSG_CHK_ERR_P(19)","⑦～⑩のうち該当する項目のみに入力してください(常勤兼務)","L列 -エラー該当行","L列にエラー表示\n→該当行は集計結果から除外",null,"勤務形態：常勤兼務かつ⑦~⑩を\n　　　　　　　　二種類以上入力時"]
["MSG_CHK_ERR_P(24)","⑦勤務時間は所定労働時間より小さい数値を入力してください",null,20,"⑥～⑨","G列-K列","プログラム",null,null,"未記入","MSG_CHK_ERR_P(20)","⑦～⑩のうち該当する項目のみに入力してください(非常勤)","L列 -エラー該当行","L列にエラー表示\n→該当行は集計結果から除外",null,"勤務形態：非常勤かつ⑦~⑩を二種類以上入力時\nただし⑨（両方）入力時⑦or⑧の二種類入力はＯＫ"]
["MSG_CHK_ERR_P(25)","⑧勤務時間は「所定労働時間ｘ４」より小さい数値を入力してください",null,21,"⑤","Ｆ列","プログラム",null,null,"未記入","MSG_CHK_ERR_P(15)","常勤専従の人数が未入力です","L列 -エラー該当行","L列にエラー表示\n→該当行は集計結果から除外",null,"勤務形態：常勤専従かつ③④⑤入力時"]
["MSG_CHK_ERR_P(26)","⑦もしくは⑧に勤務時間を入力してください",null,22,"⑥～⑨","G列-K列","プログラム",null,null,"記入","MSG_CHK_ERR_P(16)","常勤専従は常勤専従人数のみ入力してください","L列 -エラー該当行","L列にエラー表示\n→該当行は集計結果から除外",null,"勤務形態：常勤専従かつ③④⑤⑥に入力があり、⑦以降にも入力がある時"]
[null,null,null,23,"⑤","Ｆ列","プログラム",null,null,"記入","MSG_CHK_ERR_P(18)","常勤兼務・非常勤で常勤専従人数の入力があります","L列 -エラー該当行","L列にエラー表示\n→該当行は集計結果から除外",null,"勤務形態：常勤専従or非常勤の時"]
[null,null,null,24,"⑧","Ｉ列・Ｊ列","プログラム",null,null,"未記入（片方）","MSG_CHK_ERR_P(21)","⑨人数は両方入力してください","L列 -エラー該当行","L列にエラー表示\n→該当行は集計結果から除外",null,"勤務形態：非常勤かつ⑦or⑧で⑨が「ブランク」と「数値あり」の組み合わせで入力時\n"]
[null,null,null,25,"⑨","Ｋ列","プログラム",null,null,"未記入","MSG_CHK_ERR_P(22)","該当職種における勤務時間がわからない場合は、換算数を⑨に入力してください","L列 -エラー該当行","L列にエラー表示\n→該当行は集計結果から除外","福祉は⑨Aに０の入力を許さない","勤務形態：常勤兼務かつ⑨（両方）に0入力時"]
[null,null,null,26,"⑨","Ｋ列","プログラム",null,null,"未記入","MSG_CHK_ERR_P(23)","換算数を⑩に入力してください","L列 -エラー該当行","L列にエラー表示\n→該当行は集計結果から除外","福祉は⑨Aに０の入力を許さない","勤務形態：非常勤の時かつ⑦or⑧入力かつ⑨（両方）に0入力時"]
[null,null,null,27,"⑥⑦","G列-Ｈ列","プログラム",null,null,"未記入","MSG_CHK_ERR_P(26)","⑦もしくは⑧に勤務時間を入力してください","L列 -エラー該当行","L列にエラー表示\n→該当行は集計結果から除外",null,"勤務形態：非常勤かつ⑨両方のみ入力時"]

{"sheet":"集計シート","index":5,"n_rows":17,"n_cols":82,"rows_kept":17,"cut":false,"hidden":true,"merged":[[2,6,2,10],[2,11,2,17],[3,7,3,8],[3,9,3,10],[3,12,3,14],[3,15,3,17]]}
["所定労働時間"]
[0,"※[計算シート」で指定した「所定労働時間」が32時間より小さい場合は「32時間」*4で補正される"]
[null,null,null,null,null,null,"転記情報",null,null,null,null,"集計算出値",null,null,null,null,null,null,null,null,null,null,null,null,null,null,null,null,"Err1","Err2","Err6",null,"Err4","Err5(所定時間）",null,null,null,null,null,null,null,null,null,null,"Err3",null,null,null,null,null,null,null,null,"バックアップ用ヘッダー"]
["集計インデックス",null,null,null,null,null,"専従","常勤兼務",null,"非常勤",null,"専従","常勤兼務",null,null,"非常勤",null,null,null,null,null,null,null,"集計用データ",null,"※うち数",null,null,null,null,null,null,null,"ロウデータ",null,null,null,null,null,null,null,null,null,null,null,"バックアップ用",null,null,null,null,null,"*フラグ1の時のみ、四捨五入する",null,"集計用データ",null,"※うち数",null,null,null,null,null,null,null,"ロウデータ",null,null,null,null,null,null,null,"この施設・事業所の利用人数","兼務する施設・事業所の利用人数"]
["票種","サービス種別","職種-資格","集計用職種","集計用資格","集計用資格2","人数","人数","換算数","人数","換算数","人数","人数","換算数","計算","人数","換算数","計算","性別","集計用Index1","集計用Index2","集計用Index3","予備",{"$f":"IF(AC6=\"Err1\",AC6,\"\")&IF(AD6=\"Err2\",AD6,\"\")&IF(AE6=\"Err6\",AE6,\"\")&IF(AS6=\"\",\"\",\"Err3\")&IF(AJ6=\"常勤専従\",\"\",IF(AG6=0,\"Err4\",\"\"))&IF($A$2=0,\"Err5\",\"\")","v":"Err1Err2Err6Err5"},{"$f":"IF(X6<>\"\",\"\",IF(AD6=\"該当資格なし\",\"\",IF(AL6=\"\",\"\",AL6&\"-\")&AC6&IF(AD6=0,\"\",\"-\"&AD6)&\"-\"&AJ6))","v":""},{"$f":"IF(X6<>\"\",\"\",IF(AD6=0,\"\",IF(AL6=\"\",\"\",AL6&\"-\")&AC6&\"-\"&AJ6))","v":""},{"$f":"IF(X6<>\"\",\"\",IF(AE6=\"該当資格なし\",\"\",IF(AE6=0,\"\",IF(AL6=\"\",\"\",AL6&\"-\")&AD6&\"-\"&AJ6)))","v":""},"予備",{"$f":"IF(ISERROR(VLOOKUP($AK6,$C$6:$F$31,2,0))=TRUE,\"Err1\",VLOOKUP($AK6,$C$6:$F$31,2,0))","v":"Err1"},{"$f":"IF(ISERROR(VLOOKUP($AK6,$C$6:$F$31,3,0))=TRUE,\"Err2\",VLOOKUP($AK6,$C$6:$F$31,3,0))","v":"Err2"},{"$f":"IF(ISERROR(VLOOKUP($AK6,$C$6:$F$31,4,0))=TRUE,\"Err6\",VLOOKUP($AK6,$C$6:$F$31,4,0))","v":"Err6"},"予備",{"$f":"IF(AN6<>0,AN6*4,IF(AO6<>0,AO6,IF(AP6*AQ6<>0,ROUND((AP6/(AP6+AQ6)),1)*$A$2,IF(AR6<>0,AR6*$A$2,0))))","v":140},"番号","備考","勤務形態","職種","性別","専従人数","時間①","時間②","時間③","時間③","時間④","エラー","時間①","時間②","時間③","時間③","時間④",{"$f":"AJ6&AK6&AL6&AV6&AW6","v":"常勤兼務2医師"},{"$f":"IF(AJ6=\"非常勤\",IF(AX6=\"\",IF(AV6&AW6<>\"\",IF(AV6<>0,COUNTIF($AY$5:$AY$6,AY6),0),0),0),0)","v":0},null,"集計対象","集計用Index1","集計用Index2","集計用Index3","予備","職種","資格","資格2","予備","時間(標準化)","番号","備考","勤務形態","職種","性別","専従人数","時間①","時間②","時間③","時間③","時間④","エラー","時間①","時間②","時間③","時間③","時間④","特殊判断Idx","特殊判断Flg"]
["7票","-","1医師","1医師",null,null,"D7","E7","F7","G7","H7",null,null,null,null,null,null,null,null,{"$f":"IF(E6=\"該当資格なし\",\"\",IF(S6=\"\",\"\",S6&\"-\")&D6&IF(E6=\"\",\"\",\"-\"&E6)&IF(F6=\"\",\"\",IF(F6=\"該当資格なし\",\"\",\"-\"&F6)))","v":"1医師"},{"$f":"IF(E6=\"\",\"\",IF(S6=\"\",\"\",S6&\"-\")&D6)","v":""},{"$f":"IF(F6=\"\",\"\",IF(S6=\"\",\"\",S6&\"-\")&E6)","v":""},null,{"$f":"IF(AC6=\"Err1\",AC6,\"\")&IF(AD6=\"Err2\",AD6,\"\")&IF(AE6=\"Err6\",AE6,\"\")&IF(AS6=\"\",\"\",\"Err3\")&IF(AJ6=\"常勤専従\",\"\",IF(AG6=0,\"Err4\",\"\"))&IF($A$2=0,\"Err5\",\"\")","v":"Err1Err2Err6Err5"},{"$f":"IF(X6<>\"\",\"\",IF(AD6=\"該当資格なし\",\"\",IF(AL6=\"\",\"\",AL6&\"-\")&AC6&IF(AD6=0,\"\",\"-\"&AD6)&\"-\"&AJ6))","v":""},{"$f":"IF(X6<>\"\",\"\",IF(AD6=0,\"\",IF(AL6=\"\",\"\",AL6&\"-\")&AC6&\"-\"&AJ6))","v":""},{"$f":"IF(X6<>\"\",\"\",IF(AE6=\"該当資格なし\",\"\",IF(AE6=0,\"\",IF(AL6=\"\",\"\",AL6&\"-\")&AD6&\"-\"&AJ6)))","v":""},null,{"$f":"IF(ISERROR(VLOOKUP($AK6,$C$6:$F$31,2,0))=TRUE,\"Err1\",VLOOKUP($AK6,$C$6:$F$31,2,0))","v":"Err1"},{"$f":"IF(ISERROR(VLOOKUP($AK6,$C$6:$F$31,3,0))=TRUE,\"Err2\",VLOOKUP($AK6,$C$6:$F$31,3,0))","v":"Err2"},{"$f":"IF(ISERROR(VLOOKUP($AK6,$C$6:$F$31,4,0))=TRUE,\"Err6\",VLOOKUP($AK6,$C$6:$F$31,4,0))","v":"Err6"},null,{"$f":"IF(AN6<>0,AN6*4,IF(AO6<>0,AO6,IF(AP6*AQ6<>0,ROUND((AP6/(AP6+AQ6)),1)*$A$2,IF(AR6<>0,AR6*$A$2,0))))","v":140},1,null,"常勤兼務","2医師",null,null,35,null,null,null,null,null,35,null,null,null,null,{"$f":"AJ6&AK6&AL6&AV6&AW6","v":"常勤兼務2医師"},{"$f":"IF(AJ6=\"非常勤\",IF(AX6=\"\",IF(AV6&AW6<>\"\",IF(AV6<>0,COUNTIF($AY$6:$AY$6,AY6),0),0),0),0)","v":0}]
["7票","-","2看護師","2看護師",null,null,"D8","E8","F8","G8","H8",null,null,null,null,null,null,null,null,"2看護師","",""]
["7票","-","3准看護師","3准看護師",null,null,"D9","E9","F9","G9","H9",null,null,null,null,null,null,null,null,"3准看護師","",""]
["7票","-","4介護職員-該当資格なし","4介護職員","該当資格なし",null,"D10","E10","F10","G10","H10",null,null,null,null,null,null,null,null,"","4介護職員",""]
["7票","-","4介護職員-介護福祉士-勤続10年未満の者","4介護職員","介護福祉士","該当資格なし","D11","E11","F11","G11","H11",null,null,null,null,null,null,null,null,"4介護職員-介護福祉士","4介護職員","介護福祉士"]
["7票","-","4介護職員-介護福祉士-勤続10年以上の者","4介護職員","介護福祉士","勤続10年以上の者","D12","E12","F12","G12","H12",null,null,null,null,null,null,null,null,"4介護職員-介護福祉士-勤続10年以上の者","4介護職員","介護福祉士"]
["7票","-","5理学療法士","5理学療法士",null,null,"J7","K7","L7","M7","N7",null,null,null,null,null,null,null,null,"5理学療法士","",""]
["7票","-","6作業療法士","6作業療法士",null,null,"J8","K8","L8","M8","N8",null,null,null,null,null,null,null,null,"6作業療法士","",""]
["7票","-","7言語聴覚士","7言語聴覚士",null,null,"J9","K9","L9","M9","N9",null,null,null,null,null,null,null,null,"7言語聴覚士","",""]
["7票","-","8歯科衛生士","8歯科衛生士",null,null,"J10","K10","L10","M10","N10",null,null,null,null,null,null,null,null,"8歯科衛生士","",""]
["7票","-","9管理栄養士","9管理栄養士",null,null,"J11","K11","L11","M11","N11",null,null,null,null,null,null,null,null,"9管理栄養士","",""]
["7票","-","10栄養士","10栄養士",null,null,"J12","K12","L12","M12","N12",null,null,null,null,null,null,null,null,"10栄養士","",""]

{"sheet":"エラーチェック","index":6,"n_rows":47,"n_cols":16,"rows_kept":47,"cut":false,"hidden":true,"merged":[]}
["2024.5.14"]
[null,"勤務時間①-④の入力値は①＞②＞③＞④　※チェック時に優先度の高い有効値がある場合は、それより低い優先度の値のチェックは不要とする"]
[]
["エラーコード一覧",null,null,"エラーチェック　入力規則"]
["MSGCD","エラー表示メッセージ",null,"番号","項目","対象列\nセル","チェック種類","入力値種類","スタイル","チェック内容","MSGCD","エラー表示メッセージ","表示場所","集計結果","備考","確認"]
["MSG_CHK_ERR_K(1)","リストから選択してください",null,1,"サービス種別","Ｈ7","入力規則","リスト","停止","選択肢以外","MSG_CHK_ERR_K(1)",{"$f":"IF(ISERROR(VLOOKUP(K6,$A$6:$B$38,2,0))=TRUE,\"\",VLOOKUP(K6,$A$6:$B$38,2,0))","v":"リストから選択してください"},"メッセージボックス","メッセージボックスにエラーが表示される場合→入力自体不可\nL列にエラー表示→該当行は集計結果から除外","値をペーストされた場合は、L列 -エラー該当行にメッセージ表示","メッセージ確認"]
["MSG_CHK_ERR_K(2)","1週間の所定労働時間は32～44の数値で入力してください",null,2,"１週間の所定労働時間","C9","入力規則","小数点数","停止","≠小数\n範囲：1-44","MSG_CHK_ERR_K(2)","1週間の所定労働時間は32～44の数値で入力してください","メッセージボックス","メッセージボックスにエラーが表示される場合→入力自体不可\nL列にエラー表示→該当行は集計結果から除外","値をペーストされた場合は、L列 -エラー該当行にメッセージ表示","メッセージ確認"]
["MSG_CHK_ERR_K(3)","１週間の勤務時間は1～44の数値で入力してください",null,3,"勤務形態","C列","入力規則","リスト","停止","選択肢以外","MSG_CHK_ERR_K(9)","勤務形態はリストから選択してください","メッセージボックス","メッセージボックスにエラーが表示される場合→入力自体不可\nL列にエラー表示→該当行は集計結果から除外","値をペーストされた場合は、L列 -エラー該当行にメッセージ表示","メッセージ確認"]
["MSG_CHK_ERR_K(4)","人数は0～99999の整数で入力してください",null,4,"職種","D列","入力規則","リスト","停止","選択肢以外","MSG_CHK_ERR_P(7)","職種はリストから選択してください","メッセージボックス","メッセージボックスにエラーが表示される場合→入力自体不可\nL列にエラー表示→該当行は集計結果から除外","値をペーストされた場合は、L列 -エラー該当行にメッセージ表示","メッセージ確認"]
["MSG_CHK_ERR_K(5)","１職種あたりの換算数は0.1～1.0の数値で入力してください",null,5,"性別","E列","入力規則","リスト","停止","未記入","MSG_CHK_ERR_K(8)","性別はリストから選択してください","メッセージボックス","メッセージボックスにエラーが表示される場合→入力自体不可\nL列にエラー表示→該当行は集計結果から除外","値をペーストされた場合は、L列 -エラー該当行にメッセージ表示","メッセージ確認"]
["MSG_CHK_ERR_K(6)","1か月の勤務時間は1～176の数値で入力してください",null,6,"⑤常勤専従人数","Ｆ列","入力規則","整数","停止","≠整数\n範囲：1～99999","MSG_CHK_ERR_K(7)","人数は1～99999の整数で入力してください","メッセージボックス","メッセージボックスにエラーが表示される場合→入力自体不可\nL列にエラー表示→該当行は集計結果から除外","値をペーストされた場合は、L列 -エラー該当行にメッセージ表示","メッセージ確認"]
["MSG_CHK_ERR_K(7)","人数は1～99999の整数で入力してください",null,7,"⑥この施設での１週間の勤務時間","G列","入力規則","小数点数","停止","≠小数\n範囲：1-44","MSG_CHK_ERR_K(3)","１週間の勤務時間は1～44の数値で入力してください","メッセージボックス","メッセージボックスにエラーが表示される場合→入力自体不可\nL列にエラー表示→該当行は集計結果から除外","所定労働時間とのチェックはプログラムで対応\n値をペーストされた場合は、L列 -エラー該当行にメッセージ表示","メッセージ確認"]
["MSG_CHK_ERR_K(8)","性別はリストから選択してください",null,8,"⑦1か月に数回の勤務の場合の１か月の勤務時間","H列","入力規則","小数点数","停止","≠小数\n範囲：1-176","MSG_CHK_ERR_K(6)","1か月の勤務時間は1～176の数値で入力してください","メッセージボックス","メッセージボックスにエラーが表示される場合→入力自体不可\nL列にエラー表示→該当行は集計結果から除外","所定労働時間とのチェックはプログラムで対応\n値をペーストされた場合は、L列 -エラー該当行にメッセージ表示","メッセージ確認"]
["MSG_CHK_ERR_K(9)","勤務形態はリストから選択してください",null,9,"⑧勤務時間が分けられない場合","I列・J列","入力規則","整数","停止","≠整数\n範囲：0～99999","MSG_CHK_ERR_K(4)","人数は0～99999の整数で入力してください","メッセージボックス","メッセージボックスにエラーが表示される場合→入力自体不可\nL列にエラー表示→該当行は集計結果から除外","整数のみ 介護（I、J列）、福祉（I列）\n値をペーストされた場合は、L列 -エラー該当行にメッセージ表示","メッセージ確認"]
[null,null,null,10,"⑧勤務時間が分けられない場合","I列","入力規則","整数","停止","≠整数\n範囲：1～99999","MSG_CHK_ERR_K(7)","人数は1～99999の整数で入力してください","メッセージボックス","メッセージボックスにエラーが表示される場合→入力自体不可\nL列にエラー表示→該当行は集計結果から除外","整数のみ 福祉\n値をペーストされた場合は、L列 -エラー該当行にメッセージ表示","メッセージ確認"]
[null,null,null,11,"⑨当該職種の換算数","K列","入力規則","小数点数","停止","＞１．０\n範囲：0.1～1","MSG_CHK_ERR_K(5)","１職種あたりの換算数は0.1～1.0の数値で入力してください","メッセージボックス","メッセージボックスにエラーが表示される場合→入力自体不可\nL列にエラー表示→該当行は集計結果から除外","値をペーストされた場合は、L列 -エラー該当行にメッセージ表示","メッセージ確認"]
["MSG_CHK_ERR_P(1)","エラーが発生しています　(集計不可)"]
["MSG_CHK_ERR_P(2)","エラーが発生しています　(集計結果はエラー行を除外しています)"]
["MSG_CHK_ERR_P(3)","サービス種別を選択してください",null,"エラーチェック　プログラム"]
["MSG_CHK_ERR_P(4)","1週間の所定労働時間は32～44の数値で入力してください",null,"番号","項目","対象列\nセル","チェック種類","入力値種類","スタイル","チェック内容","MSGCD","エラー表示メッセージ","表示場所","集計結果","備考","確認"]
["MSG_CHK_ERR_P(5)","勤務形態をリストから選択してください",null,1,"全体","全体","プログラム",null,null,"エラーが1つ以上発生している場合\n※集計不可のエラーが含まれている場合","MSG_CHK_ERR_P(1)",{"$f":"IF(ISERROR(VLOOKUP(K21,$A$6:$B$46,2,0))=TRUE,\"\",VLOOKUP(K21,$A$6:$B$46,2,0))","v":"エラーが発生しています　(集計不可)"},"セル「G9」","全ての集計結果が算出不可","プログラムチェック結果で1つ以上のエラーが発生している場合に表示する\n「サービス種別」・「1週間の所定労働時間」のブランクエラーを含む場合","メッセージ確認"]
["MSG_CHK_ERR_P(6)","職種をリストから選択してください",null,2,"全体","全体","プログラム",null,null,"エラーが1つ以上発生している場合\n※集計不可のエラーが含まれていない場合","MSG_CHK_ERR_P(2)",{"$f":"IF(ISERROR(VLOOKUP(K22,$A$6:$B$46,2,0))=TRUE,\"\",VLOOKUP(K22,$A$6:$B$46,2,0))","v":"エラーが発生しています　(集計結果はエラー行を除外しています)"},"セル「G9」","該当行は集計結果から除外","プログラムチェック結果で1つ以上のエラーが発生している場合に表示する\n※行単位のエラーのみの場合","メッセージ確認"]
["MSG_CHK_ERR_P(7)","職種はリストから選択してください",null,3,"サービス種別","Ｈ7","プログラム",null,null,"未記入","MSG_CHK_ERR_P(3)","サービス種別を選択してください","セル「J7」","全ての集計結果が算出不可","サービス種別が複数ある調査票種のみ\n※サービス種別の選択が不要な票種は不要","サービス種別がブランクの場合の集計ができない旨を確認"]
["MSG_CHK_ERR_P(8)","性別をリストから選択してください",null,4,"１週間の所定労働時間","C9","プログラム",null,null,"未記入","MSG_CHK_ERR_P(4)","1週間の所定労働時間は32～44の数値で入力してください","セル「C10」","全ての集計結果が算出不可",null,"所定労働時間がブランクの場合の集計ができない旨を確認"]
["MSG_CHK_ERR_P(9)","⑥勤務時間は所定労働時間以下の数値を入力してください",null,5,"１週間の所定労働時間","C9","プログラム",null,null,"≠小数点第２位以内","MSG_CHK_ERR_P(11)","小数点第２位以内の数値を入力してください","セル「C10」","全ての集計結果が算出不可",null,"所定労働時間がブランクの場合の集計ができない旨を確認"]
["MSG_CHK_ERR_P(10)","⑦勤務時間は「所定労働時間ｘ４」以下の数値を入力してください",null,6,"勤務形態","C列","プログラム",null,null,"未記入","MSG_CHK_ERR_P(5)","勤務形態をリストから選択してください","L列 -エラー該当行","L列にエラー表示\n→該当行は集計結果から除外",null,"メッセージ確認"]
["MSG_CHK_ERR_P(11)","小数点第２位以内の数値を入力してください",null,7,"職種","D列","プログラム",null,null,"未記入","MSG_CHK_ERR_P(6)","職種をリストから選択してください","L列 -エラー該当行","L列にエラー表示\n→該当行は集計結果から除外",null,"勤務形態入力時"]
["MSG_CHK_ERR_P(12)","小数点第３位以内の数値を入力してください",null,8,"職種","D列","プログラム",null,null,"選択されたサービス種別に該当しない職種の場合","MSG_CHK_ERR_P(7)","職種はリストから選択してください","L列 -エラー該当行","L列にエラー表示\n→該当行は集計結果から除外","サービス種別を後で変更したケースに対応","チェックの追加を確認\n勤務形態入力時"]
["MSG_CHK_ERR_P(13)","⑧人数は両方入力してください",null,9,"性別","E列","プログラム",null,null,"未記入","MSG_CHK_ERR_P(8)","性別をリストから選択してください","L列 -エラー該当行","L列にエラー表示\n→該当行は集計結果から除外","性別の選択が不要な票はチェック不要\n※列幅を0で非表示対応とする","2021.から実稼働"]
["MSG_CHK_ERR_P(14)","⑥～⑨が未入力です",null,10,"⑥この施設での１週間の勤務時間","Ｇ列","プログラム",null,null,"≧所定労働時間","MSG_CHK_ERR_P(9)","⑥勤務時間は所定労働時間以下の数値を入力してください","L列 -エラー該当行","L列にエラー表示\n→該当行は集計結果から除外","入力規則では対応不可\n→プログラムで対応（1～44までは入力規則で対応、そうでない場合プログラムで対応）","入力規則からプログラムでのチェックに変更\n勤務形態：常勤兼務の時"]
["MSG_CHK_ERR_P(15)","常勤専従の人数が未入力です",null,11,"⑥この施設での１週間の勤務時間","Ｇ列","プログラム",null,null,">所定労働時間","MSG_CHK_ERR_P(24)","⑥勤務時間は所定労働時間より小さい数値を入力してください","L列 -エラー該当行","L列にエラー表示\n→該当行は集計結果から除外","入力規則では対応不可\n→プログラムで対応（1～44までは入力規則で対応、そうでない場合プログラムで対応）","入力規則からプログラムでのチェックに変更\n勤務形態：非常勤の時"]
["MSG_CHK_ERR_P(16)","常勤専従は常勤専従人数のみ入力してください",null,12,"⑥この施設での１週間の勤務時間","Ｇ列","プログラム",null,null,"≠小数点第２位以内","MSG_CHK_ERR_P(11)","小数点第２位以内の数値を入力してください","L列 -エラー該当行","L列にエラー表示\n→該当行は集計結果から除外","小数点以下の入力規則はできない為、チェックを追加","チェックの追加を確認\n勤務形態：常勤兼務or非常勤の時"]
["MSG_CHK_ERR_P(17)","常勤専従は⑥～⑨の入力は不要です",null,13,"⑦1か月に数回の勤務の場合の１か月の勤務時間","Ｈ列","プログラム",null,null,"≧所定労働時間×４","MSG_CHK_ERR_P(10)","⑦勤務時間は「所定労働時間ｘ４」以下の数値を入力してください","L列 -エラー該当行","L列にエラー表示\n→該当行は集計結果から除外","入力規則では対応不可\n→プログラムで対応（1～176までは入力規則で対応、そうでない場合プログラムで対応）","入力規則からプログラムでのチェックに変更\n勤務形態：常勤兼務の時"]
["MSG_CHK_ERR_P(18)","常勤兼務・非常勤で常勤専従人数の入力があります",null,14,"⑦1か月に数回の勤務の場合の１か月の勤務時間","Ｈ列","プログラム",null,null,">所定労働時間×４","MSG_CHK_ERR_P(25)","⑦勤務時間は「所定労働時間ｘ４」より小さい数値を入力してください","L列 -エラー該当行","L列にエラー表示\n→該当行は集計結果から除外","入力規則では対応不可\n→プログラムで対応（1～176までは入力規則で対応、そうでない場合プログラムで対応）","入力規則からプログラムでのチェックに変更\n勤務形態：非常勤の時"]
["MSG_CHK_ERR_P(19)","⑥～⑨のうち該当する項目のみに入力してください(常勤兼務)",null,15,"⑦1か月に数回の勤務の場合の１か月の勤務時間","Ｈ列","プログラム",null,null,"≠小数点第２位以内","MSG_CHK_ERR_P(11)","小数点第２位以内の数値を入力してください","L列 -エラー該当行","L列にエラー表示\n→該当行は集計結果から除外","小数点以下の入力規則はできない為、チェックを追加","チェックの追加を確認\n勤務形態：常勤兼務or非常勤の時"]
["MSG_CHK_ERR_P(20)","⑥～⑨のうち該当する項目のみに入力してください(非常勤)",null,16,"⑧勤務時間が分けられない場合","Ｉ列・Ｊ列\n","プログラム",null,null,"I列・Ｊ列以外に記入がなく、\nI列・Ｊ列の両方に記入がない","MSG_CHK_ERR_P(13)","⑧人数は両方入力してください","L列 -エラー該当行","L列にエラー表示\n→該当行は集計結果から除外","H列・I列の整合性チェックを追加","チェックの追加を確認\n勤務形態：常勤兼務or非常勤の時"]
["MSG_CHK_ERR_P(21)","⑧人数は両方入力してください",null,17,"⑨当該職種の勤務割合","Ｋ列","プログラム",null,null,"≠小数点第3位以内","MSG_CHK_ERR_P(12)","小数点第３位以内の数値を入力してください","L列 -エラー該当行","L列にエラー表示\n→該当行は集計結果から除外","小数点以下の入力規則はできない為、チェックを追加","チェックの追加を確認\n勤務形態：常勤兼務or非常勤の時"]
["MSG_CHK_ERR_P(22)","該当職種における勤務時間がわからない場合は、換算数を⑨に入力してください",null,18,"⑥～⑨","G列-K列\n","プログラム",null,null,"未記入","MSG_CHK_ERR_P(14)","⑥～⑨が未入力です","L列 -エラー該当行","L列にエラー表示\n→該当行は集計結果から除外","※人数按分(I、J）が１つのみ入力されている場合は番号16のチェックで対応","③④の入力がある場合\n勤務形態：常勤兼務or非常勤の時"]
["MSG_CHK_ERR_P(23)","換算数を⑨に入力してください",null,19,"⑥～⑨","G列-K列","プログラム",null,null,"未記入","MSG_CHK_ERR_P(19)","⑥～⑨のうち該当する項目のみに入力してください(常勤兼務)","L列 -エラー該当行","L列にエラー表示\n→該当行は集計結果から除外",null,"勤務形態：常勤兼務かつ⑥~⑨を\n　　　　　　　　二種類以上入力時"]
["MSG_CHK_ERR_P(24)","⑥勤務時間は所定労働時間より小さい数値を入力してください",null,20,"⑥～⑨","G列-K列","プログラム",null,null,"未記入","MSG_CHK_ERR_P(20)","⑥～⑨のうち該当する項目のみに入力してください(非常勤)","L列 -エラー該当行","L列にエラー表示\n→該当行は集計結果から除外",null,"勤務形態：非常勤かつ⑥~⑨を二種類以上入力時\nただし⑧（両方）入力時⑥or⑦の二種類入力はＯＫ"]
["MSG_CHK_ERR_P(25)","⑦勤務時間は「所定労働時間ｘ４」より小さい数値を入力してください",null,21,"⑤","Ｆ列","プログラム",null,null,"未記入","MSG_CHK_ERR_P(15)","常勤専従の人数が未入力です","L列 -エラー該当行","L列にエラー表示\n→該当行は集計結果から除外",null,"勤務形態：常勤専従かつ③④入力時"]
["MSG_CHK_ERR_P(26)","⑥もしくは⑦に勤務時間を入力してください",null,22,"⑥～⑨","G列-K列","プログラム",null,null,"記入","MSG_CHK_ERR_P(16)","常勤専従は常勤専従人数のみ入力してください","L列 -エラー該当行","L列にエラー表示\n→該当行は集計結果から除外",null,"勤務形態：常勤専従かつ③④⑤に入力があり、⑥以降にも入力がある時"]
[null,null,null,23,"⑤","Ｆ列","プログラム",null,null,"記入","MSG_CHK_ERR_P(18)","常勤兼務・非常勤で常勤専従人数の入力があります","L列 -エラー該当行","L列にエラー表示\n→該当行は集計結果から除外",null,"勤務形態：常勤専従or非常勤の時"]
[null,null,null,24,"⑧","Ｉ列・Ｊ列","プログラム",null,null,"未記入（片方）","MSG_CHK_ERR_P(21)","⑧人数は両方入力してください","L列 -エラー該当行","L列にエラー表示\n→該当行は集計結果から除外",null,"勤務形態：非常勤かつ⑥or⑦で⑧が「ブランク」と「数値あり」の組み合わせで入力時\n"]
[null,null,null,25,"⑨","Ｋ列","プログラム",null,null,"未記入","MSG_CHK_ERR_P(22)","該当職種における勤務時間がわからない場合は、換算数を⑨に入力してください","L列 -エラー該当行","L列にエラー表示\n→該当行は集計結果から除外","福祉は⑧Aに０の入力を許さない","勤務形態：常勤兼務かつ⑧（両方）に0入力時"]
[null,null,null,26,"⑨","Ｋ列","プログラム",null,null,"未記入","MSG_CHK_ERR_P(23)","換算数を⑨に入力してください","L列 -エラー該当行","L列にエラー表示\n→該当行は集計結果から除外","福祉は⑧Aに０の入力を許さない","勤務形態：非常勤の時かつ⑥or⑦入力かつ⑧（両方）に0入力時"]
[null,null,null,27,"⑥⑦","G列-Ｈ列","プログラム",null,null,"未記入","MSG_CHK_ERR_P(26)","⑥もしくは⑦に勤務時間を入力してください","L列 -エラー該当行","L列にエラー表示\n→該当行は集計結果から除外",null,"勤務形態：非常勤かつ⑧両方のみ入力時"]